[Event "Live Chess"]
[Site "Chess.com"]
[Date "2023.05.20"]
[Round "-"]
[White "Kr1xot4_XGOD"]
[Black "peter-785"]
[Result "1-0"]
[WhiteElo "2199"]
[BlackElo "1147"]
[TimeControl "300"]
[EndTime "9:29:35 PDT"]
[Termination "Kr1xot4_XGOD won by resignation"]

1. e4 {[%clk 0:04:54.7]} 1... c5 {[%clk 0:04:56.7]} 2. Nc3 {[%clk 0:04:52.2]}
2... d6 {[%clk 0:04:56.1]} 3. d4 {[%clk 0:04:49.7]} 3... cxd4 {[%clk 0:04:54.9]}
4. Qxd4 {[%clk 0:04:48.7]} 4... Nc6 {[%clk 0:04:53.1]} 5. Qd3 {[%clk 0:04:46.5]}
5... e6 {[%clk 0:04:42.1]} 6. Bf4 {[%clk 0:04:32.3]} 6... Nf6 {[%clk 0:04:36.9]}
7. O-O-O {[%clk 0:04:25.3]} 7... Nb4 {[%clk 0:04:12.7]} 8. Qd2 {[%clk
0:04:20.9]} 8... Be7 {[%clk 0:04:04.2]} 9. e5 {[%clk 0:04:15]} 9... dxe5 {[%clk
0:03:40]} 10. Qxd8+ {[%clk 0:04:14.5]} 10... Bxd8 {[%clk 0:03:38.8]} 11. Bxe5
{[%clk 0:04:11.5]} 11... O-O {[%clk 0:03:34]} 12. Bd6 {[%clk 0:04:07.2]} 12...
Re8 {[%clk 0:03:05.5]} 13. Bxb4 {[%clk 0:03:56.8]} 13... Ng4 {[%clk 0:03:02.6]}
14. Ne4 {[%clk 0:03:49.1]} 14... a5 {[%clk 0:03:00.3]} 15. Ba3 {[%clk
0:03:40.5]} 15... b5 {[%clk 0:02:56.1]} 16. Bxb5 {[%clk 0:03:37.2]} 1-0

[Event "Live Chess"]
[Site "Chess.com"]
[Date "2023.05.20"]
[Round "-"]
[White "Hussamalhaidar"]
[Black "alanmike75"]
[Result "0-1"]
[WhiteElo "961"]
[BlackElo "1506"]
[TimeControl "300"]
[EndTime "9:29:37 PDT"]
[Termination "alanmike75 won by checkmate"]

1. e4 {[%clk 0:04:58.4]} 1... e5 {[%clk 0:04:58.7]} 2. Nf3 {[%clk 0:04:57.8]}
2... d6 {[%clk 0:04:57.1]} 3. Bc4 {[%clk 0:04:57.1]} 3... Be7 {[%clk 0:04:55.3]}
4. Nc3 {[%clk 0:04:56.5]} 4... Nf6 {[%clk 0:04:54.2]} 5. d4 {[%clk 0:04:51.1]}
5... exd4 {[%clk 0:04:53]} 6. Nxd4 {[%clk 0:04:49.3]} 6... O-O {[%clk
0:04:51.9]} 7. Bg5 {[%clk 0:04:45]} 7... c6 {[%clk 0:04:50.7]} 8. f4 {[%clk
0:04:43.6]} 8... d5 {[%clk 0:04:49.3]} 9. Bb3 {[%clk 0:04:41.5]} 9... dxe4
{[%clk 0:04:44.6]} 10. Bxf6 {[%clk 0:04:39.3]} 10... Bxf6 {[%clk 0:04:42.5]} 11.
O-O {[%clk 0:04:35.9]} 11... Qxd4+ {[%clk 0:04:39.7]} 12. Qxd4 {[%clk
0:04:32.5]} 12... Bxd4+ {[%clk 0:04:38.4]} 13. Kh1 {[%clk 0:04:30.7]} 13... Bxc3
{[%clk 0:04:37.2]} 14. bxc3 {[%clk 0:04:29.3]} 14... Kh8 {[%clk 0:04:35.8]} 15.
Rfe1 {[%clk 0:04:27.9]} 15... f5 {[%clk 0:04:34.4]} 16. c4 {[%clk 0:04:25.6]}
16... Na6 {[%clk 0:04:33.1]} 17. a4 {[%clk 0:04:23.2]} 17... Be6 {[%clk
0:04:28.3]} 18. Rad1 {[%clk 0:04:22.5]} 18... Nc5 {[%clk 0:04:26.4]} 19. Ba2
{[%clk 0:04:20.6]} 19... Rad8 {[%clk 0:04:24.5]} 20. h3 {[%clk 0:04:14.1]} 20...
g6 {[%clk 0:04:23]} 21. g4 {[%clk 0:04:12.7]} 21... Kg7 {[%clk 0:04:20.4]} 22.
gxf5 {[%clk 0:04:11.3]} 22... gxf5 {[%clk 0:04:16.9]} 23. h4 {[%clk 0:04:08.6]}
23... Kf6 {[%clk 0:04:14.8]} 24. h5 {[%clk 0:04:06.7]} 24... b5 {[%clk
0:04:02.4]} 25. axb5 {[%clk 0:04:04.8]} 25... cxb5 {[%clk 0:04:01.1]} 26. Rb1
{[%clk 0:03:50.3]} 26... bxc4 {[%clk 0:03:58.2]} 27. c3 {[%clk 0:03:42.5]} 27...
Nd3 {[%clk 0:03:54.4]} 28. Rf1 {[%clk 0:03:37]} 28... Rd6 {[%clk 0:03:47.8]} 29.
Rb7 {[%clk 0:03:32.9]} 29... Rf7 {[%clk 0:03:46.5]} 30. Rb8 {[%clk 0:03:28.8]}
30... Ra6 {[%clk 0:03:43.5]} 31. Bb1 {[%clk 0:03:22.3]} 31... Ra1 {[%clk
0:03:38.7]} 32. Bxd3 {[%clk 0:03:20.9]} 32... Rxf1+ {[%clk 0:03:30.1]} 33. Bxf1
{[%clk 0:03:19.1]} 33... Kg7 {[%clk 0:03:22.5]} 34. Rb4 {[%clk 0:03:10.6]} 34...
Rc7 {[%clk 0:03:20.5]} 35. Ra4 {[%clk 0:03:08]} 35... Kh6 {[%clk 0:03:18.3]} 36.
Ra6 {[%clk 0:03:04.7]} 36... Re7 {[%clk 0:03:02]} 37. Bh3 {[%clk 0:03:01.3]}
37... Kxh5 {[%clk 0:02:57.1]} 38. Ra5 {[%clk 0:02:47.1]} 38... Kg6 {[%clk
0:02:52]} 39. Re5 {[%clk 0:02:42.6]} 39... Kf6 {[%clk 0:02:50.4]} 40. Rc5 {[%clk
0:02:39.5]} 40... Rd7 {[%clk 0:02:41]} 41. Bg2 {[%clk 0:02:27.6]} 41... Rd3
{[%clk 0:02:38.7]} 42. Kh2 {[%clk 0:02:09.7]} 42... Rxc3 {[%clk 0:02:36.9]} 43.
Bf1 {[%clk 0:02:05.7]} 43... Rc2+ {[%clk 0:02:34.3]} 44. Kg3 {[%clk 0:02:03.5]}
44... Rc1 {[%clk 0:02:27.9]} 45. Be2 {[%clk 0:02:01.3]} 45... h5 {[%clk
0:02:21.4]} 46. Kh4 {[%clk 0:01:56.5]} 46... Rh1+ {[%clk 0:02:14.6]} 47. Kg3
{[%clk 0:01:54.3]} 47... h4+ {[%clk 0:02:10.8]} 48. Kg2 {[%clk 0:01:51.9]} 48...
Rc1 {[%clk 0:02:08.8]} 49. Kh3 {[%clk 0:01:49.5]} 49... Rc2 {[%clk 0:02:06.6]}
50. Bd1 {[%clk 0:01:45.4]} 50... Rf2 {[%clk 0:02:05]} 51. Kxh4 {[%clk
0:01:41.3]} 51... Rxf4+ {[%clk 0:02:03.7]} 52. Kg3 {[%clk 0:01:40.2]} 52... Rf1
{[%clk 0:02:02.2]} 53. Be2 {[%clk 0:01:38.3]} 53... Rg1+ {[%clk 0:02:00.4]} 54.
Kf4 {[%clk 0:01:33.9]} 54... Re1 {[%clk 0:01:53.5]} 55. Bxc4 {[%clk 0:01:29.7]}
55... Rc1 {[%clk 0:01:40.8]} 56. Bxe6 {[%clk 0:01:08.8]} 56... Rxc5 {[%clk
0:01:38.6]} 57. Bb3 {[%clk 0:01:04.1]} 57... a5 {[%clk 0:01:36.8]} 58. Ba4
{[%clk 0:01:00.8]} 58... Rc3 {[%clk 0:01:34.1]} 59. Bd1 {[%clk 0:00:49.8]} 59...
Rc1 {[%clk 0:01:29]} 60. Be2 {[%clk 0:00:47.4]} 60... a4 {[%clk 0:01:26.1]} 61.
Ke3 {[%clk 0:00:45.6]} 61... Re1 {[%clk 0:01:23.8]} 62. Kf2 {[%clk 0:00:43.4]}
62... Rxe2+ {[%clk 0:01:22.4]} 63. Kxe2 {[%clk 0:00:42.6]} 63... a3 {[%clk
0:01:21.5]} 64. Kd2 {[%clk 0:00:39.2]} 64... a2 {[%clk 0:01:20.4]} 65. Ke3
{[%clk 0:00:38.3]} 65... a1=Q {[%clk 0:01:17.9]} 66. Kf4 {[%clk 0:00:37.8]}
66... Qf1+ {[%clk 0:01:16.2]} 67. Kg3 {[%clk 0:00:35.3]} 67... Qf3+ {[%clk
0:01:14.8]} 68. Kh2 {[%clk 0:00:33.4]} 68... e3 {[%clk 0:01:13.7]} 69. Kg1
{[%clk 0:00:31.4]} 69... Qf2+ {[%clk 0:01:10.7]} 70. Kh1 {[%clk 0:00:27.5]}
70... Qf3+ {[%clk 0:01:06.8]} 71. Kg1 {[%clk 0:00:25.8]} 71... e2 {[%clk
0:01:04.2]} 72. Kh2 {[%clk 0:00:23.4]} 72... Qf4+ {[%clk 0:01:02.1]} 73. Kg2
{[%clk 0:00:20]} 73... Qe4+ {[%clk 0:00:56.6]} 74. Kh2 {[%clk 0:00:18.3]} 74...
e1=Q {[%clk 0:00:51.8]} 75. Kh3 {[%clk 0:00:15.8]} 75... Q1h1+ {[%clk
0:00:47.9]} 76. Kg3 {[%clk 0:00:14.2]} 76... Qg1+ {[%clk 0:00:44.8]} 77. Kh3
{[%clk 0:00:12.2]} 77... Qeh1# {[%clk 0:00:43.4]} 0-1

[Event "Live Chess"]
[Site "Chess.com"]
[Date "2023.05.20"]
[Round "-"]
[White "VovaOvchar1990"]
[Black "KING_BOBBB"]
[Result "0-1"]
[WhiteElo "1201"]
[BlackElo "543"]
[TimeControl "300"]
[EndTime "9:29:39 PDT"]
[Termination "KING_BOBBB won on time"]

1. e4 {[%clk 0:04:58.4]} 1... d5 {[%clk 0:04:59.5]} 2. exd5 {[%clk 0:04:57.2]}
2... Qxd5 {[%clk 0:04:59.4]} 3. Nc3 {[%clk 0:04:55.9]} 3... Qa5 {[%clk
0:04:59.2]} 4. Nf3 {[%clk 0:04:54.9]} 4... Nf6 {[%clk 0:04:57.8]} 5. Bc4 {[%clk
0:04:53.7]} 5... Bf5 {[%clk 0:04:57.2]} 6. d3 {[%clk 0:04:52.6]} 6... e6 {[%clk
0:04:56.8]} 7. O-O {[%clk 0:04:51.4]} 7... Nc6 {[%clk 0:04:56.3]} 8. h3 {[%clk
0:04:50.4]} 8... Bb4 {[%clk 0:04:55.5]} 9. Bd2 {[%clk 0:04:47.4]} 9... O-O
{[%clk 0:04:50]} 10. a3 {[%clk 0:04:46.1]} 10... Bd6 {[%clk 0:04:46.8]} 11. Ne4
{[%clk 0:04:36.3]} 11... Qb6 {[%clk 0:04:40.9]} 12. Nxf6+ {[%clk 0:04:34.7]}
12... gxf6 {[%clk 0:04:39.7]} 13. Nh4 {[%clk 0:04:27.9]} 13... Bg6 {[%clk
0:04:32.9]} 14. Qg4 {[%clk 0:04:17.3]} 14... Ne5 {[%clk 0:04:27.5]} 15. Qd1
{[%clk 0:03:52.3]} 15... Nxc4 {[%clk 0:04:14.9]} 16. dxc4 {[%clk 0:03:50.8]}
16... Qxb2 {[%clk 0:04:11.7]} 17. Rb1 {[%clk 0:03:38.2]} 17... Qxa3 {[%clk
0:04:07.7]} 18. Rb3 {[%clk 0:03:30.1]} 18... Qc5 {[%clk 0:03:56.4]} 19. Nxg6
{[%clk 0:03:24.1]} 19... hxg6 {[%clk 0:03:52.7]} 20. Qg4 {[%clk 0:03:19.4]}
20... Qe5 {[%clk 0:03:46.8]} 21. g3 {[%clk 0:02:59.5]} 21... f5 {[%clk
0:03:44.8]} 22. Qh4 {[%clk 0:02:52.4]} 22... Qg7 {[%clk 0:03:26.8]} 23. Bc3
{[%clk 0:02:47.3]} 23... Be5 {[%clk 0:03:20.3]} 24. Bxe5 {[%clk 0:02:37.9]}
24... Qxe5 {[%clk 0:03:18.9]} 25. Rxb7 {[%clk 0:02:37.6]} 25... Rfb8 {[%clk
0:03:11.6]} 26. Rfb1 {[%clk 0:02:24]} 26... Rxb7 {[%clk 0:03:06.8]} 27. Rxb7
{[%clk 0:02:22.1]} 27... Qe1+ {[%clk 0:03:04.1]} 28. Kg2 {[%clk 0:02:20.7]}
28... Qe4+ {[%clk 0:02:51.8]} 29. Qxe4 {[%clk 0:02:08.2]} 29... fxe4 {[%clk
0:02:51.7]} 30. Rxc7 {[%clk 0:02:06.6]} 30... a5 {[%clk 0:02:48.1]} 31. Rb7
{[%clk 0:02:05.3]} 31... a4 {[%clk 0:02:34.5]} 32. Rb1 {[%clk 0:02:00.5]} 32...
a3 {[%clk 0:02:31]} 33. Ra1 {[%clk 0:01:59.5]} 33... f5 {[%clk 0:02:28.1]} 34.
g4 {[%clk 0:01:57.2]} 34... Kf7 {[%clk 0:02:26.4]} 35. Kg3 {[%clk 0:01:55.2]}
35... Kf6 {[%clk 0:02:23.8]} 36. Kf4 {[%clk 0:01:54]} 36... e5+ {[%clk
0:02:22.1]} 37. Ke3 {[%clk 0:01:50]} 37... g5 {[%clk 0:02:07.8]} 38. f3 {[%clk
0:01:42.7]} 38... exf3 {[%clk 0:02:03.8]} 39. Kxf3 {[%clk 0:01:41]} 39... fxg4+
{[%clk 0:01:55.9]} 40. hxg4 {[%clk 0:01:39.3]} 40... Ra5 {[%clk 0:01:52.4]} 41.
Ke4 {[%clk 0:01:37.6]} 41... Rc5 {[%clk 0:01:47.8]} 42. Kd3 {[%clk 0:01:32.9]}
42... Ra5 {[%clk 0:01:33.6]} 43. Ke4 {[%clk 0:01:29.2]} 43... Ke6 {[%clk
0:01:30.7]} 44. Ra2 {[%clk 0:01:20]} 44... Kd6 {[%clk 0:01:28.1]} 45. Kf5 {[%clk
0:01:18.3]} 45... e4+ {[%clk 0:01:21.1]} 46. Kxe4 {[%clk 0:01:16.3]} 46... Kc5
{[%clk 0:01:20.1]} 47. Kd3 {[%clk 0:01:12.5]} 47... Kb4 {[%clk 0:01:12.3]} 48.
Kd4 {[%clk 0:00:58.7]} 48... Rc5 {[%clk 0:01:06.5]} 49. Rxa3 {[%clk 0:00:48]}
49... Rxc4+ {[%clk 0:01:05.6]} 50. Kd3 {[%clk 0:00:44.3]} 50... Rf4 {[%clk
0:00:53]} 51. Rb3+ {[%clk 0:00:38.3]} 51... Kc5 {[%clk 0:00:52.1]} 52. Rc3+
{[%clk 0:00:35.3]} 52... Kd5 {[%clk 0:00:50.7]} 53. Rc8 {[%clk 0:00:24.6]} 53...
Rxg4 {[%clk 0:00:48.8]} 54. Rg8 {[%clk 0:00:23.9]} 54... Rg1 {[%clk 0:00:43.9]}
55. c4+ {[%clk 0:00:19.5]} 55... Kc5 {[%clk 0:00:42.8]} 56. Rc8+ {[%clk
0:00:17.1]} 56... Kd6 {[%clk 0:00:39]} 57. c5+ {[%clk 0:00:14.4]} 57... Kd7
{[%clk 0:00:37.8]} 58. Rg8 {[%clk 0:00:12.2]} 58... Kc6 {[%clk 0:00:37]} 59. Kc4
{[%clk 0:00:10.2]} 59... g4 {[%clk 0:00:35.9]} 60. Rg6+ {[%clk 0:00:08.5]} 60...
Kc7 {[%clk 0:00:34.7]} 61. Kb5 {[%clk 0:00:07]} 61... g3 {[%clk 0:00:33.6]} 62.
Rg7+ {[%clk 0:00:05.7]} 62... Kc8 {[%clk 0:00:32.9]} 63. Kb6 {[%clk 0:00:04.7]}
63... g2 {[%clk 0:00:32.1]} 64. Kc6 {[%clk 0:00:02.8]} 64... Kd8 {[%clk
0:00:25.2]} 65. Kd6 {[%clk 0:00:00.5]} 65... Rd1+ {[%clk 0:00:23.6]} 0-1

[Event "Live Chess"]
[Site "Chess.com"]
[Date "2023.05.20"]
[Round "-"]
[White "Pablo_dmp"]
[Black "miguelchuk"]
[Result "1-0"]
[WhiteElo "1870"]
[BlackElo "1640"]
[TimeControl "300"]
[EndTime "9:29:43 PDT"]
[Termination "Pablo_dmp won on time"]

1. e4 {[%clk 0:04:58.8]} 1... a6 {[%clk 0:04:58.2]} 2. d4 {[%clk 0:04:57.5]}
2... b5 {[%clk 0:04:56.9]} 3. f4 {[%clk 0:04:54.8]} 3... Bb7 {[%clk 0:04:55.8]}
4. Bd3 {[%clk 0:04:52.9]} 4... Nf6 {[%clk 0:04:52]} 5. Qe2 {[%clk 0:04:49.6]}
5... g6 {[%clk 0:04:36.2]} 6. Nf3 {[%clk 0:04:48.1]} 6... Bg7 {[%clk 0:04:31.5]}
7. e5 {[%clk 0:04:40.9]} 7... Nd5 {[%clk 0:04:27.1]} 8. O-O {[%clk 0:04:35.5]}
8... e6 {[%clk 0:04:15.4]} 9. b3 {[%clk 0:04:26.7]} 9... O-O {[%clk 0:03:55.4]}
10. a3 {[%clk 0:04:20.6]} 10... c5 {[%clk 0:03:24.2]} 11. c4 {[%clk 0:04:10.1]}
11... bxc4 {[%clk 0:03:18]} 12. bxc4 {[%clk 0:04:10]} 12... Ne7 {[%clk
0:02:54.6]} 13. dxc5 {[%clk 0:04:06.5]} 13... Nbc6 {[%clk 0:02:47.4]} 14. Nc3
{[%clk 0:03:54.5]} 14... Nf5 {[%clk 0:02:42.6]} 15. Ne4 {[%clk 0:03:44.9]} 15...
Qa5 {[%clk 0:01:51.5]} 16. Bd2 {[%clk 0:03:38.6]} 16... Ncd4 {[%clk 0:01:30.3]}
17. Bxa5 {[%clk 0:03:32.9]} 17... Nxe2+ {[%clk 0:01:28.2]} 18. Bxe2 {[%clk
0:03:30.5]} 18... Bxe4 {[%clk 0:01:26.8]} 19. Bb6 {[%clk 0:03:20.2]} 19... Ne3
{[%clk 0:01:19.9]} 20. Rfe1 {[%clk 0:03:12.2]} 20... Nc2 {[%clk 0:01:15]} 21.
Ng5 {[%clk 0:03:07.9]} 21... Bc6 {[%clk 0:01:02.8]} 22. Bd3 {[%clk 0:02:52.1]}
22... Nxe1 {[%clk 0:00:59.8]} 23. Rxe1 {[%clk 0:02:49.7]} 23... a5 {[%clk
0:00:57.4]} 24. Be4 {[%clk 0:02:47.8]} 24... a4 {[%clk 0:00:53.1]} 25. Bxc6
{[%clk 0:02:45.5]} 25... dxc6 {[%clk 0:00:52.2]} 26. Ne4 {[%clk 0:02:45.4]}
26... f6 {[%clk 0:00:39.1]} 27. Nd6 {[%clk 0:02:34.7]} 27... fxe5 {[%clk
0:00:37.2]} 28. fxe5 {[%clk 0:02:34.6]} 28... Rf4 {[%clk 0:00:32.1]} 29. g3
{[%clk 0:02:29.5]} 29... Rd4 {[%clk 0:00:28.7]} 30. Re3 {[%clk 0:02:17.2]} 30...
Rd2 {[%clk 0:00:27.3]} 31. Ne4 {[%clk 0:02:07.7]} 31... Rd1+ {[%clk 0:00:26.5]}
32. Kg2 {[%clk 0:02:06.3]} 32... Bxe5 {[%clk 0:00:23.4]} 33. Ng5 {[%clk
0:02:02.2]} 33... Rd2+ {[%clk 0:00:18.8]} 34. Kh3 {[%clk 0:02:00.2]} 34... Bd4
{[%clk 0:00:16.7]} 35. Rxe6 {[%clk 0:01:55.6]} 35... Rf8 {[%clk 0:00:15.4]} 36.
Rxc6 {[%clk 0:01:46.2]} 36... Bg1 {[%clk 0:00:14.3]} 37. Ne4 {[%clk 0:01:13.1]}
37... Rxh2+ {[%clk 0:00:12.7]} 38. Kg4 {[%clk 0:01:11.8]} 38... h5+ {[%clk
0:00:08.9]} 39. Kg5 {[%clk 0:01:10.6]} 39... Be3+ {[%clk 0:00:06.6]} 40. Kxg6
{[%clk 0:01:09.4]} 40... Rg2 {[%clk 0:00:00.7]} 41. Rc7 {[%clk 0:00:58.4]} 1-0

[Event "Live Chess"]
[Site "Chess.com"]
[Date "2023.05.20"]
[Round "-"]
[White "thrithik"]
[Black "gmnorfolk"]
[Result "0-1"]
[WhiteElo "489"]
[BlackElo "2128"]
[TimeControl "300"]
[EndTime "9:29:44 PDT"]
[Termination "gmnorfolk won by checkmate"]

1. Nc3 {[%clk 0:04:55]} 1... d5 {[%clk 0:04:57.8]} 2. Nb5 {[%clk 0:04:51.9]}
2... a6 {[%clk 0:04:53.8]} 3. Nd4 {[%clk 0:04:48.7]} 3... e5 {[%clk 0:04:50.6]}
4. Nf5 {[%clk 0:04:47.9]} 4... Bxf5 {[%clk 0:04:48.8]} 5. Nf3 {[%clk 0:04:42.5]}
5... Nc6 {[%clk 0:04:44.2]} 6. Nxe5 {[%clk 0:04:42]} 6... Nxe5 {[%clk
0:04:42.9]} 7. g3 {[%clk 0:04:37.2]} 7... Qe7 {[%clk 0:04:36]} 8. Bg2 {[%clk
0:04:36.7]} 8... c6 {[%clk 0:04:34.1]} 9. b3 {[%clk 0:04:30.9]} 9... Nf6 {[%clk
0:04:32.5]} 10. Bb2 {[%clk 0:04:29.2]} 10... Be4 {[%clk 0:04:26.2]} 11. Bxe5
{[%clk 0:04:28.6]} 11... Qxe5 {[%clk 0:04:22.5]} 12. Rb1 {[%clk 0:04:23.8]}
12... Bxg2 {[%clk 0:04:20.8]} 13. c3 {[%clk 0:04:23.6]} 13... Bxh1 {[%clk
0:04:18.2]} 14. f3 {[%clk 0:04:20.9]} 14... Bd6 {[%clk 0:04:15.5]} 15. Kf2
{[%clk 0:04:16.8]} 15... h5 {[%clk 0:04:08.6]} 16. Qxh1 {[%clk 0:04:14.2]} 16...
h4 {[%clk 0:04:06.5]} 17. gxh4 {[%clk 0:04:12.6]} 17... Qxh2+ {[%clk 0:04:00.4]}
18. Qxh2 {[%clk 0:04:10.4]} 18... Bxh2 {[%clk 0:04:00.3]} 19. Kg2 {[%clk
0:04:08.3]} 19... Bd6 {[%clk 0:03:56.7]} 20. Rh1 {[%clk 0:04:04.5]} 20... O-O-O
{[%clk 0:03:54.6]} 21. h5 {[%clk 0:04:02.7]} 21... Rxh5 {[%clk 0:03:53.3]} 22.
Rxh5 {[%clk 0:04:00.3]} 22... Nxh5 {[%clk 0:03:53.2]} 23. f4 {[%clk 0:03:58.1]}
23... Nxf4+ {[%clk 0:03:52.2]} 24. Kf3 {[%clk 0:03:56.4]} 24... Nxe2 {[%clk
0:03:52.1]} 25. Kxe2 {[%clk 0:03:53.2]} 25... Be5 {[%clk 0:03:50.7]} 26. d4
{[%clk 0:03:51]} 26... Bxd4 {[%clk 0:03:48.2]} 27. cxd4 {[%clk 0:03:48.9]} 27...
Re8+ {[%clk 0:03:48.1]} 28. Kd3 {[%clk 0:03:43.8]} 28... Re4 {[%clk 0:03:48]}
29. Kc3 {[%clk 0:03:37.4]} 29... g5 {[%clk 0:03:46]} 30. Kb4 {[%clk 0:03:33.5]}
30... g4 {[%clk 0:03:45.9]} 31. Kc5 {[%clk 0:03:30.8]} 31... Kc7 {[%clk
0:03:44.3]} 32. Kb4 {[%clk 0:03:28.9]} 32... b6 {[%clk 0:03:41.1]} 33. a4 {[%clk
0:03:27]} 33... a5+ {[%clk 0:03:40.2]} 34. Kc3 {[%clk 0:03:23.8]} 34... g3
{[%clk 0:03:37.5]} 35. Kd2 {[%clk 0:03:21.6]} 35... g2 {[%clk 0:03:36.5]} 36.
Kd3 {[%clk 0:03:18]} 36... g1=Q {[%clk 0:03:36.4]} 37. Kc3 {[%clk 0:03:15.2]}
37... Qxd4+ {[%clk 0:03:36.3]} 38. Kc2 {[%clk 0:03:12]} 38... Re2+ {[%clk
0:03:36.2]} 39. Kb1 {[%clk 0:03:10.1]} 39... Qb2# {[%clk 0:03:36]} 0-1

[Event "Live Chess"]
[Site "Chess.com"]
[Date "2023.05.20"]
[Round "-"]
[White "GEMdzq"]
[Black "GMHarry-youtube"]
[Result "1-0"]
[WhiteElo "2370"]
[BlackElo "2182"]
[TimeControl "300"]
[EndTime "9:29:47 PDT"]
[Termination "GEMdzq won by checkmate"]

1. e4 {[%clk 0:04:57.9]} 1... c5 {[%clk 0:04:52.2]} 2. d4 {[%clk 0:04:56.8]}
2... cxd4 {[%clk 0:04:46.6]} 3. c3 {[%clk 0:04:55.9]} 3... dxc3 {[%clk
0:04:46.5]} 4. Nxc3 {[%clk 0:04:55.2]} 4... Nc6 {[%clk 0:04:46.4]} 5. Bc4 {[%clk
0:04:54.3]} 5... e6 {[%clk 0:04:46.3]} 6. Nf3 {[%clk 0:04:53.3]} 6... Bb4 {[%clk
0:04:45.8]} 7. O-O {[%clk 0:04:50]} 7... Nge7 {[%clk 0:04:43.5]} 8. Qd3 {[%clk
0:04:47.9]} 8... O-O {[%clk 0:04:36.1]} 9. Rd1 {[%clk 0:04:46.6]} 9... a6 {[%clk
0:04:25.2]} 10. Bg5 {[%clk 0:04:40.6]} 10... f6 {[%clk 0:04:23.6]} 11. Be3
{[%clk 0:04:22.9]} 11... Na5 {[%clk 0:04:14.2]} 12. Bxe6+ {[%clk 0:04:09.1]}
12... Kh8 {[%clk 0:04:07.7]} 13. Bxd7 {[%clk 0:03:14.7]} 13... Bxc3 {[%clk
0:04:01.8]} 14. bxc3 {[%clk 0:03:08.4]} 14... Qc7 {[%clk 0:03:41.8]} 15. Bxc8
{[%clk 0:02:30.9]} 15... Raxc8 {[%clk 0:03:38.3]} 16. Qd7 {[%clk 0:02:25.4]}
16... Qxd7 {[%clk 0:03:21.6]} 17. Rxd7 {[%clk 0:02:25.3]} 17... Ng6 {[%clk
0:03:19.5]} 18. Bb6 {[%clk 0:02:01.9]} 18... Nc4 {[%clk 0:03:15.8]} 19. Bd4
{[%clk 0:02:00.9]} 19... b5 {[%clk 0:03:12.9]} 20. a4 {[%clk 0:01:59.4]} 20...
Rb8 {[%clk 0:03:07.1]} 21. axb5 {[%clk 0:01:55.2]} 21... axb5 {[%clk 0:03:05.4]}
22. Raa7 {[%clk 0:01:50]} 22... Nce5 {[%clk 0:02:51.7]} 23. Rxg7 {[%clk
0:01:44.2]} 23... Rfc8 {[%clk 0:02:46.7]} 24. Rxh7+ {[%clk 0:01:39.7]} 24... Kg8
{[%clk 0:02:44.9]} 25. h4 {[%clk 0:01:24.9]} 25... b4 {[%clk 0:02:32.5]} 26. h5
{[%clk 0:01:06.1]} 26... Nxf3+ {[%clk 0:02:28.2]} 27. gxf3 {[%clk 0:01:04.4]}
27... Ne5 {[%clk 0:02:26]} 28. Rag7+ {[%clk 0:00:59.6]} 28... Kf8 {[%clk
0:02:24.8]} 29. h6 {[%clk 0:00:56.3]} 29... b3 {[%clk 0:02:14.9]} 30. Rh8#
{[%clk 0:00:55.1]} 1-0

[Event "Live Chess"]
[Site "Chess.com"]
[Date "2023.05.20"]
[Round "-"]
[White "ChessTWSS"]
[Black "sup3rm0nk3y"]
[Result "1-0"]
[WhiteElo "1580"]
[BlackElo "1330"]
[TimeControl "300"]
[EndTime "9:29:48 PDT"]
[Termination "ChessTWSS won by resignation"]

1. d4 {[%clk 0:04:54.7]} 1... d5 {[%clk 0:04:58.4]} 2. Bf4 {[%clk 0:04:51.1]}
2... Bf5 {[%clk 0:04:56.4]} 3. e3 {[%clk 0:04:47.3]} 3... e6 {[%clk 0:04:54.9]}
4. Nf3 {[%clk 0:04:44.6]} 4... Bd6 {[%clk 0:04:52.3]} 5. Bxd6 {[%clk 0:04:41]}
5... cxd6 {[%clk 0:04:49.9]} 6. c4 {[%clk 0:04:37.2]} 6... dxc4 {[%clk
0:04:47.4]} 7. Bxc4 {[%clk 0:04:33.4]} 7... Nf6 {[%clk 0:04:45.8]} 8. Nc3 {[%clk
0:04:26.6]} 8... a6 {[%clk 0:04:42.9]} 9. O-O {[%clk 0:04:22.8]} 9... O-O {[%clk
0:04:41.3]} 10. Nh4 {[%clk 0:04:15.4]} 10... Be4 {[%clk 0:04:34.7]} 11. Nxe4
{[%clk 0:04:11.1]} 11... Nxe4 {[%clk 0:04:34.6]} 12. Qg4 {[%clk 0:04:04.4]}
12... d5 {[%clk 0:04:17.3]} 13. Bd3 {[%clk 0:04:00.7]} 13... f5 {[%clk 0:04:07]}
14. Qh5 {[%clk 0:03:55.2]} 14... g6 {[%clk 0:03:52.5]} 15. Qh6 {[%clk
0:03:48.1]} 15... Nd7 {[%clk 0:03:20.3]} 16. Bxe4 {[%clk 0:03:41.9]} 16... dxe4
{[%clk 0:03:19.1]} 17. f3 {[%clk 0:03:34.2]} 17... exf3 {[%clk 0:03:16.7]} 18.
Nxf3 {[%clk 0:03:20.4]} 18... Nf6 {[%clk 0:03:13.6]} 19. Ne5 {[%clk 0:03:15.7]}
19... Nh5 {[%clk 0:02:41.4]} 20. g4 {[%clk 0:03:03.7]} 20... Ng7 {[%clk
0:02:36.6]} 21. h3 {[%clk 0:02:54.4]} 21... fxg4 {[%clk 0:02:33.1]} 22. hxg4
{[%clk 0:02:47.9]} 22... b5 {[%clk 0:02:13.5]} 23. Rxf8+ {[%clk 0:02:40.9]}
23... Qxf8 {[%clk 0:02:13.4]} 24. Rf1 {[%clk 0:02:33.9]} 24... Qe7 {[%clk
0:02:12]} 25. Rf7 {[%clk 0:02:28.7]} 25... Qxf7 {[%clk 0:02:08.7]} 26. Nxf7
{[%clk 0:02:23.7]} 26... Kxf7 {[%clk 0:02:08.6]} 27. Qxh7 {[%clk 0:02:19.8]} 1-0

[Event "Live Chess"]
[Site "Chess.com"]
[Date "2023.05.20"]
[Round "-"]
[White "onemoretime1975"]
[Black "Sergio2StepsAheado"]
[Result "1-0"]
[WhiteElo "1970"]
[BlackElo "970"]
[TimeControl "300"]
[EndTime "9:29:51 PDT"]
[Termination "onemoretime1975 won by resignation"]

1. e4 {[%clk 0:04:57.2]} 1... e5 {[%clk 0:04:58.8]} 2. Nf3 {[%clk 0:04:55.3]}
2... Nf6 {[%clk 0:04:58.2]} 3. Nc3 {[%clk 0:04:52.8]} 3... Bc5 {[%clk
0:04:56.1]} 4. h3 {[%clk 0:04:47.6]} 4... Nc6 {[%clk 0:04:54.2]} 5. a3 {[%clk
0:04:43.2]} 5... d6 {[%clk 0:04:53]} 6. Bc4 {[%clk 0:04:39.7]} 6... Be6 {[%clk
0:04:50.3]} 7. Bb5 {[%clk 0:04:31.9]} 7... a6 {[%clk 0:04:46.4]} 8. Be2 {[%clk
0:04:29]} 8... d5 {[%clk 0:04:27]} 9. exd5 {[%clk 0:04:26.9]} 9... Nxd5 {[%clk
0:04:26.9]} 10. Nxd5 {[%clk 0:04:24]} 10... Qxd5 {[%clk 0:04:26.8]} 11. d3
{[%clk 0:04:20]} 11... Rd8 {[%clk 0:04:16.8]} 12. O-O {[%clk 0:04:15.5]} 12...
O-O {[%clk 0:04:01.3]} 13. Ng5 {[%clk 0:04:13.9]} 13... h6 {[%clk 0:03:46]} 14.
Bf3 {[%clk 0:04:11.2]} 14... Qd6 {[%clk 0:03:24.4]} 15. Ne4 {[%clk 0:04:07.4]}
15... Qd4 {[%clk 0:03:08.1]} 16. Be3 {[%clk 0:04:02.8]} 16... Qxb2 {[%clk
0:02:48]} 17. Nxc5 {[%clk 0:03:59.6]} 17... Rfe8 {[%clk 0:02:40.9]} 18. Nxe6
{[%clk 0:03:54.3]} 18... Rxe6 {[%clk 0:02:33.5]} 19. Bxc6 {[%clk 0:03:50.2]}
19... Rxc6 {[%clk 0:02:31]} 20. Rb1 {[%clk 0:03:39.1]} 20... Qa2 {[%clk
0:02:01.6]} 21. c4 {[%clk 0:03:21.9]} 21... e4 {[%clk 0:01:56.8]} 22. d4 {[%clk
0:03:15.2]} 22... Rxc4 {[%clk 0:01:51.9]} 23. Rxb7 {[%clk 0:03:11.9]} 23... Rc2
{[%clk 0:01:40.5]} 24. Qa1 {[%clk 0:02:57.6]} 24... Qb3 {[%clk 0:01:27]} 25.
Rxb3 {[%clk 0:02:54.5]} 1-0